[Event "Open NK Rapid 2025"]
[Site "Helmond, Netherlands"]
[Date "2025.05.03"]
[Round "9.12"]
[White "Kurt, Sascha"]
[Black "Kazarjan, Gachatur"]
[Result "1/2-1/2"]
[TimeControl "15+5"]
[WhiteFideId "1082647"]
[BlackFideId "1068750"]
[WhiteElo "1953"]
[BlackElo "2155"]

1. e4 {[%clk 00:15:08]} {[%emt 00:00:02]} c5 {[%clk 00:14:50]} {[%emt
00:00:20]} 2. Nf3 {[%clk 00:15:10]} {[%emt 00:00:03]} d6 {[%clk 00:14:49]}
{[%emt 00:00:06]} 3. Bb5+ {[%clk 00:15:13]} {[%emt 00:00:02]} Nd7 {[%clk
00:14:52]} {[%emt 00:00:02]} 4. d4 {[%clk 00:15:16]} {[%emt 00:00:02]} cxd4
{[%clk 00:14:55]} {[%emt 00:00:02]} 5. Nxd4 {[%clk 00:15:19]} {[%emt 00:00:02]}
a6 {[%clk 00:15:00]} 6. Bd3 {[%clk 00:15:23]} {[%emt 00:00:02]} Ngf6 {[%clk
00:15:04]} {[%emt 00:00:01]} 7. O-O {[%clk 00:15:25]} {[%emt 00:00:02]} g6
{[%clk 00:15:08]} {[%emt 00:00:01]} 8. c4 {[%clk 00:15:17]} {[%emt 00:00:13]}
Bg7 {[%clk 00:15:10]} {[%emt 00:00:03]} 9. Re1 {[%clk 00:15:14]} {[%emt
00:00:07]} O-O {[%clk 00:14:58]} {[%emt 00:00:18]} 10. Nc3 {[%clk 00:15:00]}
{[%emt 00:00:19]} Nc5 {[%clk 00:14:04]} {[%emt 00:01:00]} 11. Nb3 {[%clk
00:14:32]} {[%emt 00:00:32]} Nxd3 {[%clk 00:13:53]} {[%emt 00:00:16]} 12. Qxd3
{[%clk 00:14:35]} {[%emt 00:00:02]} Be6 {[%clk 00:13:53]} {[%emt 00:00:04]} 13.
Nd4 {[%clk 00:14:25]} {[%emt 00:00:16]} Nd7 {[%clk 00:13:53]} {[%emt 00:00:05]}
14. Nxe6 {[%clk 00:14:26]} {[%emt 00:00:04]} fxe6 {[%clk 00:13:56]} {[%emt
00:00:02]} 15. Qh3 {[%clk 00:14:20]} {[%emt 00:00:11]} Kh8 {[%clk 00:13:16]}
{[%emt 00:00:45]} 16. Qxe6 {[%clk 00:13:22]} {[%emt 00:01:04]} Nc5 {[%clk
00:13:13]} {[%emt 00:00:08]} 17. Qh3 {[%clk 00:13:09]} {[%emt 00:00:16]} Qb6
{[%clk 00:12:00]} {[%emt 00:01:20]} 18. Nd5 {[%clk 00:12:43]} {[%emt 00:00:31]}
Qa5 {[%clk 00:11:42]} {[%emt 00:00:15]} 19. Bh6 {[%clk 00:08:41]} {[%emt
00:04:14]} Bxb2 {[%clk 00:10:03]} {[%emt 00:01:43]} 20. Bxf8 {[%clk 00:07:58]}
{[%emt 00:00:49]} Bxa1 {[%clk 00:09:35]} {[%emt 00:00:33]} 21. Rxa1 {[%clk
00:08:01]} {[%emt 00:00:03]} Rxf8 {[%clk 00:09:38]} {[%emt 00:00:01]} 22. Nxe7
{[%clk 00:07:53]} {[%emt 00:00:14]} Kg7 {[%clk 00:08:46]} {[%emt 00:00:56]} 23.
Qe3 {[%clk 00:07:05]} {[%emt 00:00:52]} Ne6 {[%clk 00:07:34]} {[%emt 00:01:18]}
24. Nd5 {[%clk 00:07:04]} {[%emt 00:00:06]} Qc5 {[%clk 00:06:18]} {[%emt
00:01:21]} 25. Qxc5 {[%clk 00:06:58]} {[%emt 00:00:11]} Nxc5 {[%clk 00:05:33]}
{[%emt 00:00:50]} 26. f3 {[%clk 00:07:00]} {[%emt 00:00:02]} Kf7 {[%clk
00:05:37]} {[%emt 00:00:01]} 27. Kf2 {[%clk 00:06:54]} {[%emt 00:00:12]} Ke6
{[%clk 00:05:41]} {[%emt 00:00:01]} 28. Ke3 {[%clk 00:06:58]} {[%emt 00:00:01]}
Rf7 {[%clk 00:05:45]} {[%emt 00:00:01]} 29. Rb1 {[%clk 00:06:58]} {[%emt
00:00:06]} g5 {[%clk 00:05:33]} {[%emt 00:00:16]} 30. g3 {[%clk 00:06:48]}
{[%emt 00:00:15]} h6 {[%clk 00:05:20]} {[%emt 00:00:18]} 31. f4 {[%clk
00:06:22]} {[%emt 00:00:31]} gxf4+ {[%clk 00:05:00]} {[%emt 00:00:23]} 32. gxf4
{[%clk 00:06:18]} {[%emt 00:00:11]} Rg7 {[%clk 00:04:58]} {[%emt 00:00:06]} 33.
Kf3 {[%clk 00:06:22]} {[%emt 00:00:02]} h5 {[%clk 00:04:37]} {[%emt 00:00:26]}
34. e5 {[%clk 00:05:40]} {[%emt 00:00:47]} dxe5 {[%clk 00:03:01]} {[%emt
00:01:41]} 35. Rb6+ {[%clk 00:05:44]} {[%emt 00:00:01]} Kd7 {[%clk 00:03:05]}
36. fxe5 {[%clk 00:05:43]} {[%emt 00:00:06]} Rg1 {[%clk 00:03:07]} {[%emt
00:00:04]} 37. Rd6+ {[%clk 00:05:29]} {[%emt 00:00:19]} Ke8 {[%clk 00:02:37]}
{[%emt 00:00:35]} 38. Ke3 {[%clk 00:03:56]} {[%emt 00:01:37]} Nd7 {[%clk
00:00:46]} {[%emt 00:01:56]} 39. Nf6+ {[%clk 00:03:02]} {[%emt 00:01:00]} Nxf6
{[%clk 00:00:50]} {[%emt 00:00:01]} 40. Rxf6 {[%clk 00:02:52]} {[%emt
00:00:15]} Re1+ {[%clk 00:00:37]} {[%emt 00:00:17]} 41. Kd4 {[%clk 00:02:46]}
{[%emt 00:00:11]} Re2 {[%clk 00:00:39]} {[%emt 00:00:02]} 42. h4 {[%clk
00:02:39]} {[%emt 00:00:12]} Rh2 {[%clk 00:00:15]} {[%emt 00:00:30]} 43. Rf4
{[%clk 00:02:26]} {[%emt 00:00:18]} Ke7 {[%clk 00:00:19]} {[%emt 00:00:01]} 44.
Kd5 {[%clk 00:02:25]} {[%emt 00:00:05]} Rxa2 {[%clk 00:00:23]} {[%emt
00:00:02]} 45. Rf5 {[%clk 00:02:27]} {[%emt 00:00:03]} Ra5+ {[%clk 00:00:27]}
{[%emt 00:00:02]} 46. Kd4 {[%clk 00:02:30]} {[%emt 00:00:02]} Ra4 {[%clk
00:00:31]} {[%emt 00:00:01]} 47. Kc5 {[%clk 00:02:24]} {[%emt 00:00:11]} Ke6
{[%clk 00:00:16]} {[%emt 00:00:20]} 48. Rxh5 {[%clk 00:02:26]} {[%emt
00:00:02]} b5 {[%clk 00:00:13]} {[%emt 00:00:08]} 49. cxb5 {[%clk 00:01:59]}
{[%emt 00:00:33]} axb5 {[%clk 00:00:11]} {[%emt 00:00:07]} 50. Kxb5 {[%clk
00:01:45]} {[%emt 00:00:18]} Re4 {[%clk 00:00:15]} 51. Kc6 {[%clk 00:01:45]}
{[%emt 00:00:06]} Rxe5 {[%clk 00:00:14]} {[%emt 00:00:05]} 52. Rh8 {[%clk
00:01:42]} {[%emt 00:00:08]} Kf7 {[%clk 00:00:14]} {[%emt 00:00:05]} 53. Kd6
{[%clk 00:01:44]} {[%emt 00:00:03]} Re1 {[%clk 00:00:16]} {[%emt 00:00:03]} 54.
Rh5 {[%clk 00:01:42]} {[%emt 00:00:08]} Kg6 {[%clk 00:00:18]} {[%emt 00:00:02]}
55. Rg5 {[%clk 00:01:39]} {[%emt 00:00:08]} Kh6 {[%clk 00:00:20]} {[%emt
00:00:03]} 56. Rg8 {[%clk 00:01:38]} {[%emt 00:00:06]} Rh1 {[%clk 00:00:11]}
{[%emt 00:00:14]} 57. Ke5 {[%clk 00:01:36]} {[%emt 00:00:07]} Rf1 {[%clk
00:00:10]} {[%emt 00:00:06]} 58. Rh8+ {[%clk 00:01:30]} {[%emt 00:00:11]} Kg7
{[%clk 00:00:12]} {[%emt 00:00:03]} 59. Rh5 {[%clk 00:01:32]} {[%emt 00:00:02]}
Kg6 {[%clk 00:00:16]} {[%emt 00:00:02]} 60. Rg5+ {[%clk 00:01:36]} {[%emt
00:00:01]} Kh6 {[%clk 00:00:20]} 61. Rg4 {[%clk 00:01:31]} {[%emt 00:00:10]}
Kh5 {[%clk 00:00:13]} {[%emt 00:00:12]} 62. Re4 {[%clk 00:01:28]} {[%emt
00:00:07]} Rf8 {[%clk 00:00:08]} {[%emt 00:00:11]} 63. Kd4 {[%clk 00:01:29]}
{[%emt 00:00:04]} Rg8 {[%clk 00:00:09]} {[%emt 00:00:04]} 64. Ke3 {[%clk
00:01:30]} {[%emt 00:00:04]} Rg4 {[%clk 00:00:12]} {[%emt 00:00:03]} 65. Re8
{[%clk 00:01:29]} {[%emt 00:00:05]} Kxh4 {[%clk 00:00:07]} {[%emt 00:00:09]} 66.
Kf3 {[%clk 00:01:29]} {[%emt 00:00:06]} Ra4 {[%clk 00:00:09]} {[%emt 00:00:04]}
67. Re3 {[%clk 00:01:26]} {[%emt 00:00:07]} Kg5 {[%clk 00:00:09]} {[%emt
00:00:04]} 68. Ke4 {[%emt 00:00:07]} 1/2-1/2

[Event "Open NK Rapid 2025"]
[Site "Helmond, Netherlands"]
[Date "2025.05.03"]
[Round "9.13"]
[White "Baselmans, Luuk"]
[Black "Aarts, Joaquin"]
[Result "1-0"]
[TimeControl "15+5"]
[WhiteFideId "1051008"]
[BlackFideId "1078224"]
[WhiteElo "2405"]
[BlackElo "2027"]

1. e4 {[%clk 00:15:08]} {[%emt 00:00:01]} c5 {[%clk 00:15:09]} {[%emt
00:00:02]} 2. Nf3 {[%clk 00:15:11]} {[%emt 00:00:02]} d6 {[%clk 00:15:13]} 3.
Bb5+ {[%clk 00:15:15]} {[%emt 00:00:01]} Nd7 {[%clk 00:15:17]} {[%emt
00:00:01]} 4. Ba4 {[%clk 00:15:19]} {[%emt 00:00:01]} Ngf6 {[%clk 00:15:21]}
{[%emt 00:00:01]} 5. O-O {[%clk 00:15:21]} {[%emt 00:00:02]} e6 {[%clk
00:15:21]} {[%emt 00:00:05]} 6. Re1 {[%clk 00:15:21]} {[%emt 00:00:05]} Be7
{[%clk 00:15:24]} {[%emt 00:00:02]} 7. c3 {[%clk 00:15:24]} {[%emt 00:00:03]}
a6 {[%clk 00:14:32]} {[%emt 00:00:58]} 8. d4 {[%clk 00:15:26]} {[%emt
00:00:02]} b5 {[%clk 00:14:23]} {[%emt 00:00:13]} 9. Bc2 {[%clk 00:15:26]}
{[%emt 00:00:06]} cxd4 {[%clk 00:14:24]} {[%emt 00:00:03]} 10. cxd4 {[%clk
00:15:29]} {[%emt 00:00:02]} e5 {[%clk 00:14:19]} {[%emt 00:00:10]} 11. a4
{[%clk 00:14:27]} {[%emt 00:01:07]} Bb7 {[%clk 00:13:50]} {[%emt 00:00:34]} 12.
axb5 {[%clk 00:14:15]} {[%emt 00:00:18]} axb5 {[%clk 00:13:53]} {[%emt
00:00:02]} 13. Rxa8 {[%clk 00:14:11]} {[%emt 00:00:08]} Qxa8 {[%clk 00:13:57]}
{[%emt 00:00:02]} 14. d5 {[%clk 00:12:03]} {[%emt 00:02:13]} O-O {[%clk
00:13:58]} {[%emt 00:00:03]} 15. Be3 {[%clk 00:11:44]} {[%emt 00:00:24]} Rc8
{[%clk 00:13:44]} {[%emt 00:00:20]} 16. Bd3 {[%clk 00:11:25]} {[%emt 00:00:24]}
Ba6 {[%clk 00:11:22]} {[%emt 00:02:27]} 17. Qe2 {[%clk 00:11:09]} {[%emt
00:00:20]} Nb8 {[%clk 00:11:08]} {[%emt 00:00:19]} 18. b4 {[%clk 00:09:22]}
{[%emt 00:01:52]} Qb7 {[%clk 00:10:25]} {[%emt 00:00:47]} 19. Rc1 {[%clk
00:08:56]} {[%emt 00:00:32]} Rxc1+ {[%clk 00:10:07]} {[%emt 00:00:24]} 20. Bxc1
{[%clk 00:08:59]} {[%emt 00:00:02]} Ne8 {[%clk 00:09:26]} {[%emt 00:00:46]} 21.
Nc3 {[%clk 00:08:32]} {[%emt 00:00:31]} Nc7 {[%clk 00:09:17]} {[%emt 00:00:14]}
22. Be3 {[%clk 00:07:52]} {[%emt 00:00:45]} Nd7 {[%clk 00:08:44]} {[%emt
00:00:38]} 23. Nd2 {[%clk 00:06:58]} {[%emt 00:01:00]} Nb6 {[%clk 00:06:45]}
{[%emt 00:02:04]} 24. Bxb6 {[%clk 00:06:16]} {[%emt 00:00:47]} Qxb6 {[%clk
00:06:48]} {[%emt 00:00:01]} 25. Nb3 {[%clk 00:06:20]} {[%emt 00:00:01]} Bg5
{[%clk 00:05:22]} {[%emt 00:01:31]} 26. Qg4 {[%clk 00:06:12]} {[%emt 00:00:14]}
h6 {[%clk 00:04:17]} {[%emt 00:01:10]} 27. Qd7 {[%clk 00:05:37]} {[%emt
00:00:39]} Be3 {[%clk 00:02:51]} {[%emt 00:01:30]} 28. Nd1 {[%clk 00:05:18]}
{[%emt 00:00:26]} Bg5 {[%clk 00:01:33]} {[%emt 00:01:22]} 29. g3 {[%clk
00:05:11]} {[%emt 00:00:12]} h5 {[%clk 00:01:36]} {[%emt 00:00:02]} 30. Qf5
{[%clk 00:04:25]} {[%emt 00:00:51]} f6 {[%clk 00:01:10]} {[%emt 00:00:26]} 31.
h4 {[%clk 00:04:06]} {[%emt 00:00:29]} Bh6 {[%clk 00:00:47]} {[%emt 00:00:28]}
32. Be2 {[%clk 00:02:53]} {[%emt 00:01:19]} Qb8 {[%clk 00:00:12]} {[%emt
00:00:39]} 33. Qxh5 {[%clk 00:01:11]} {[%emt 00:01:47]} Qd8 {[%clk 00:00:07]}
{[%emt 00:00:10]} 34. Bg4 {[%clk 00:00:56]} {[%emt 00:00:21]} Bc8 {[%clk
00:00:00]} {[%emt 00:00:07]} 1-0

[Event "Open NK Rapid 2025"]
[Site "Helmond, Netherlands"]
[Date "2025.05.03"]
[Round "9.14"]
[White "Leenen, Boyd"]
[Black "Schneider, Ilja"]
[Result "0-1"]
[TimeControl "15+5"]
[WhiteFideId "1083937"]
[BlackFideId "4663306"]
[WhiteElo "1931"]
[BlackElo "2438"]

1. d4 {[%clk 00:15:09]} Nf6 {[%clk 00:15:09]} {[%emt 00:00:02]} 2. c4 {[%clk
00:15:13]} {[%emt 00:00:01]} e6 {[%clk 00:15:14]} 3. Nc3 {[%clk 00:15:15]}
{[%emt 00:00:03]} Bb4 {[%clk 00:15:17]} {[%emt 00:00:02]} 4. f3 {[%clk
00:15:18]} {[%emt 00:00:01]} d5 {[%clk 00:15:15]} {[%emt 00:00:08]} 5. a3
{[%clk 00:15:20]} {[%emt 00:00:02]} Bd6 {[%clk 00:15:17]} {[%emt 00:00:02]} 6.
cxd5 {[%clk 00:15:21]} {[%emt 00:00:05]} exd5 {[%clk 00:15:17]} {[%emt
00:00:05]} 7. Bg5 {[%clk 00:13:25]} {[%emt 00:02:01]} h6 {[%clk 00:15:06]}
{[%emt 00:00:16]} 8. Bh4 {[%clk 00:13:11]} {[%emt 00:00:18]} c6 {[%clk
00:13:46]} {[%emt 00:01:26]} 9. e4 {[%clk 00:12:47]} {[%emt 00:00:29]} dxe4
{[%clk 00:12:35]} {[%emt 00:01:16]} 10. fxe4 {[%clk 00:12:40]} {[%emt
00:00:12]} Be7 {[%clk 00:12:33]} {[%emt 00:00:07]} 11. Bg3 {[%clk 00:12:12]}
{[%emt 00:00:33]} O-O {[%clk 00:11:57]} {[%emt 00:00:41]} 12. Nf3 {[%clk
00:12:14]} {[%emt 00:00:03]} Bg4 {[%clk 00:11:43]} {[%emt 00:00:19]} 13. Be2
{[%clk 00:12:04]} {[%emt 00:00:15]} Nh5 {[%clk 00:11:46]} {[%emt 00:00:02]} 14.
Bf2 {[%clk 00:11:49]} {[%emt 00:00:19]} Nf4 {[%clk 00:11:50]} {[%emt 00:00:02]}
15. O-O {[%clk 00:11:48]} {[%emt 00:00:05]} Nd7 {[%clk 00:11:35]} {[%emt
00:00:22]} 16. Be3 {[%clk 00:11:47]} {[%emt 00:00:05]} Nxe2+ {[%clk 00:11:36]}
{[%emt 00:00:04]} 17. Qxe2 {[%clk 00:11:48]} {[%emt 00:00:04]} f5 {[%clk
00:11:18]} {[%emt 00:00:23]} 18. Qc4+ {[%clk 00:11:13]} {[%emt 00:00:40]} Kh8
{[%clk 00:11:14]} {[%emt 00:00:09]} 19. e5 {[%clk 00:11:00]} {[%emt 00:00:17]}
f4 {[%clk 00:11:13]} {[%emt 00:00:07]} 20. Bd2 {[%clk 00:10:56]} {[%emt
00:00:08]} Nb6 {[%clk 00:11:17]} {[%emt 00:00:02]} 21. Qb3 {[%clk 00:10:30]}
{[%emt 00:00:29]} Bxf3 {[%clk 00:11:20]} {[%emt 00:00:04]} 22. Rxf3 {[%clk
00:10:16]} {[%emt 00:00:18]} Qxd4+ {[%clk 00:11:23]} {[%emt 00:00:02]} 23. Rf2
{[%emt 00:00:08]} Bh4 {[%clk 00:11:23]} 24. Be1 {[%clk 00:10:13]} {[%emt
00:00:11]} Bxf2+ {[%clk 00:11:12]} {[%emt 00:00:16]} 25. Bxf2 {[%clk 00:10:17]}
Qxe5 {[%clk 00:11:16]} 26. Re1 {[%clk 00:09:25]} {[%emt 00:00:57]} Qf5 {[%clk
00:11:20]} 27. Rf1 {[%clk 00:06:01]} {[%emt 00:03:29]} Qf7 {[%clk 00:11:10]}
{[%emt 00:00:16]} 28. Qc2 {[%clk 00:05:52]} {[%emt 00:00:13]} Nd5 {[%clk
00:11:14]} {[%emt 00:00:01]} 29. Nb1 {[%clk 00:05:33]} {[%emt 00:00:24]} Qf5
{[%clk 00:11:13]} {[%emt 00:00:06]} 30. Qc5 {[%clk 00:05:16]} {[%emt 00:00:22]}
f3 {[%clk 00:11:05]} {[%emt 00:00:13]} 31. gxf3 {[%clk 00:05:08]} {[%emt
00:00:12]} Qxf3 {[%clk 00:11:05]} {[%emt 00:00:06]} 32. Nd2 {[%clk 00:05:08]}
{[%emt 00:00:06]} Qe2 {[%clk 00:10:59]} {[%emt 00:00:10]} 33. Nc4 {[%clk
00:04:55]} {[%emt 00:00:18]} Rf5 {[%clk 00:10:57]} {[%emt 00:00:07]} 34. Qd4
{[%clk 00:02:05]} {[%emt 00:02:54]} Raf8 {[%clk 00:10:31]} {[%emt 00:00:32]} 35.
Nd2 {[%clk 00:00:29]} {[%emt 00:01:42]} c5 {[%clk 00:10:24]} {[%emt 00:00:12]}
36. Qxc5 {[%clk 00:00:14]} {[%emt 00:00:19]} Qxd2 {[%clk 00:10:27]} {[%emt
00:00:01]} 37. h4 {[%emt 00:00:04]} Nf4 {[%clk 00:10:27]} {[%emt 00:00:04]} 38.
Qe3 {[%clk 00:00:08]} {[%emt 00:00:14]} Nh3+ {[%clk 00:10:26]} {[%emt
00:00:06]} 39. Kg2 {[%clk 00:00:10]} {[%emt 00:00:04]} Rxf2+ {[%emt 00:00:09]}
0-1

[Event "Open NK Rapid 2025"]
[Site "Helmond, Netherlands"]
[Date "2025.05.03"]
[Round "9.15"]
[White "Hilwerda, Jonas"]
[Black "Madularea, David"]
[Result "0-1"]
[TimeControl "15+5"]
[WhiteFideId "1046713"]
[BlackFideId "1070215"]
[WhiteElo "2233"]
[BlackElo "1921"]

1. e4 {[%clk 00:15:08]} {[%emt 00:00:02]} d6 {[%clk 00:15:06]} {[%emt
00:00:05]} 2. d4 {[%clk 00:15:10]} {[%emt 00:00:02]} Nf6 {[%clk 00:15:10]}
{[%emt 00:00:01]} 3. Nc3 {[%clk 00:15:14]} {[%emt 00:00:01]} e6 {[%clk
00:15:14]} {[%emt 00:00:01]} 4. Be3 {[%clk 00:15:03]} {[%emt 00:00:16]} Be7
{[%clk 00:15:18]} {[%emt 00:00:01]} 5. Be2 {[%clk 00:14:53]} {[%emt 00:00:15]}
O-O {[%clk 00:15:09]} {[%emt 00:00:14]} 6. g4 {[%clk 00:14:55]} {[%emt
00:00:02]} c5 {[%clk 00:15:05]} {[%emt 00:00:10]} 7. g5 {[%clk 00:13:58]}
{[%emt 00:01:02]} Nfd7 {[%clk 00:15:07]} {[%emt 00:00:03]} 8. h4 {[%clk
00:13:59]} {[%emt 00:00:04]} cxd4 {[%clk 00:15:05]} {[%emt 00:00:07]} 9. Qxd4
{[%clk 00:13:55]} {[%emt 00:00:09]} Nc6 {[%clk 00:15:08]} {[%emt 00:00:02]} 10.
Qd2 {[%clk 00:13:58]} {[%emt 00:00:01]} a6 {[%emt 00:00:25]} 11. f4 {[%clk
00:13:52]} b5 {[%clk 00:14:38]} {[%emt 00:00:27]} 12. Nf3 {[%clk 00:13:45]}
{[%emt 00:00:13]} Nc5 {[%clk 00:14:21]} {[%emt 00:00:21]} 13. a3 {[%clk
00:11:52]} {[%emt 00:01:58]} Bb7 {[%clk 00:13:08]} {[%emt 00:01:17]} 14. h5
{[%clk 00:11:55]} {[%emt 00:00:02]} f5 {[%clk 00:12:57]} {[%emt 00:00:17]} 15.
exf5 {[%clk 00:11:48]} {[%emt 00:00:12]} Rxf5 {[%clk 00:12:52]} {[%emt
00:00:09]} 16. Nh4 {[%clk 00:11:51]} {[%emt 00:00:03]} Rf8 {[%clk 00:12:50]}
{[%emt 00:00:06]} 17. Bf3 {[%clk 00:11:46]} {[%emt 00:00:11]} Na5 {[%clk
00:11:57]} {[%emt 00:00:57]} 18. Qe2 {[%clk 00:11:06]} {[%emt 00:00:46]} Bxf3
{[%clk 00:11:01]} {[%emt 00:01:01]} 19. Nxf3 {[%clk 00:11:10]} Nc4 {[%clk
00:10:56]} {[%emt 00:00:10]} 20. Bxc5 {[%clk 00:10:42]} {[%emt 00:00:33]} dxc5
{[%clk 00:11:00]} {[%emt 00:00:01]} 21. Qxe6+ {[%clk 00:10:46]} {[%emt
00:00:01]} Kh8 {[%clk 00:11:04]} {[%emt 00:00:01]} 22. Nd5 {[%clk 00:10:38]}
{[%emt 00:00:13]} Re8 {[%clk 00:08:55]} {[%emt 00:02:13]} 23. O-O-O {[%clk
00:10:41]} {[%emt 00:00:03]} Bf6 {[%clk 00:07:57]} {[%emt 00:01:03]} 24. Qf7
{[%clk 00:09:19]} {[%emt 00:01:27]} Bxb2+ {[%clk 00:07:44]} {[%emt 00:00:17]}
25. Kb1 {[%clk 00:09:23]} {[%emt 00:00:01]} Qa5 {[%clk 00:07:08]} {[%emt
00:00:41]} 26. Nh4 {[%clk 00:09:15]} {[%emt 00:00:13]} h6 {[%clk 00:06:15]}
{[%emt 00:00:59]} 27. Rh3 {[%clk 00:04:47]} {[%emt 00:04:33]} Re1 {[%clk
00:05:48]} {[%emt 00:00:32]} 28. Rhd3 {[%clk 00:03:37]} {[%emt 00:01:15]} Rxd1+
{[%clk 00:05:29]} {[%emt 00:00:24]} 29. Rxd1 {[%clk 00:03:41]} Qxa3 {[%clk
00:05:31]} {[%emt 00:00:04]} 30. c3 {[%clk 00:03:45]} Qa1+ {[%clk 00:05:35]}
{[%emt 00:00:02]} 31. Kc2 {[%clk 00:03:50]} Qa4+ {[%clk 00:05:39]} {[%emt
00:00:01]} 0-1